fUST/lending_fUST_20240726
["ID","MTS","AMOUNT","RATE_DAILY","PERIOD"]
[333250513,1721981441370,-319.81,0.00013972,2]
[333250514,1721981441380,-500.0,0.00013972,2]
[333250515,1721981441390,-501.6976513,0.00013972,2]
[333250516,1721981441400,-500.0,0.00013972,2]
[333250517,1721981441409,-500.0,0.00013972,2]
[333250518,1721981441419,-516.89597913,0.00013972,2]
[333250519,1721981441428,-500.0,0.00013972,2]
[333250520,1721981441439,-301.44,0.00013972,2]
[333250521,1721981441450,-500.0,0.00013972,2]
[333250522,1721981441460,-500.0,0.00013972,2]
[333250523,1721981441469,-505.71279425,0.00013972,2]
[333250524,1721981441479,-500.0,0.00013972,2]
[333250525,1721981441490,-500.0,0.00013972,2]
[333250526,1721981441500,-500.0,0.00013972,2]
[333250527,1721981441513,-500.0,0.00013972,2]
[333250528,1721981441524,-317.07107395,0.00013972,2]
[333250529,1721981441534,-500.0,0.00013972,2]
[333250530,1721981441544,-500.0,0.00013972,2]
[333250531,1721981441554,-367.53930495,0.00013996,2]
[333250532,1721981441563,-166.666666,0.00014018,2]
[333250533,1721981441573,-59.1794958,0.00014027,2]
[333250534,1721981441588,-93.8205042,0.00014027,2]
[333250535,1721981441598,-181.0,0.00014027,2]
[333250536,1721981441608,-181.0,0.00014027,2]
[333250537,1721981441617,-181.0,0.00014027,2]
[333250538,1721981441627,-181.0,0.00014027,2]
[333250539,1721981441636,-181.0,0.00014027,2]
[333250540,1721981441646,-181.0,0.00014027,2]
[333250541,1721981441656,-181.0,0.00014027,2]
[333250542,1721981441667,-181.0,0.00014027,2]
[333250543,1721981441678,-181.0,0.00014027,2]
[333250544,1721981441689,-153.0,0.00014027,2]
[333250545,1721981441700,-153.0,0.00014027,2]
[333250546,1721981441710,-189.0,0.00014027,2]
[333250547,1721981441719,-189.0,0.00014027,2]
[333250548,1721981441728,-189.0,0.00014027,2]
[333250549,1721981441740,-189.0,0.00014027,2]
[333250550,1721981441749,-189.0,0.00014027,2]
[333250551,1721981441759,-19.23010366,0.00014027,2]
[333250552,1721981441965,-169.76989634,0.00014027,2]
[333250553,1721981441977,-189.0,0.00014027,2]
[333250554,1721981441987,-189.0,0.00014027,2]
[333250555,1721981441998,-189.0,0.00014027,2]
[333250556,1721981442009,-189.0,0.00014027,2]
[333250557,1721981442019,-189.0,0.00014027,2]
[333250558,1721981442031,-189.0,0.00014027,2]
[333250559,1721981442042,-189.0,0.00014027,2]
[333250560,1721981442053,-189.0,0.00014027,2]
[333250561,1721981442065,-189.0,0.00014027,2]
[333250562,1721981442075,-189.0,0.00014027,2]
[333250563,1721981442085,-189.0,0.00014027,2]
[333250564,1721981442095,-189.0,0.00014027,2]
[333250565,1721981442106,-153.0,0.00014027,2]
[333250566,1721981442117,-153.0,0.00014027,2]
[333250567,1721981442128,-191.0,0.00014027,2]
[333250568,1721981442141,-191.0,0.00014027,2]
[333250569,1721981442152,-191.0,0.00014027,2]
[333250570,1721981442162,-191.0,0.00014027,2]
[333250571,1721981442174,-191.0,0.00014027,2]
[333250572,1721981442184,-191.0,0.00014027,2]
[333250573,1721981442194,-191.0,0.00014027,2]
[333250574,1721981442205,-191.0,0.00014027,2]
[333250575,1721981442216,-191.0,0.00014027,2]
[333250576,1721981442228,-191.0,0.00014027,2]
[333250577,1721981442237,-191.0,0.00014027,2]
[333250578,1721981442247,-191.0,0.00014027,2]
[333250579,1721981442257,-191.0,0.00014027,2]
[333250580,1721981442269,-191.0,0.00014027,2]
[333250581,1721981442279,-153.0,0.00014027,2]
[333250582,1721981442290,-153.0,0.00014027,2]
[333250583,1721981442300,-191.0,0.00014027,2]
[333250584,1721981442311,-191.0,0.00014027,2]
[333250585,1721981442322,-191.0,0.00014027,2]
[333250586,1721981442332,-191.0,0.00014027,2]
[333250587,1721981442344,-191.0,0.00014027,2]
[333250588,1721981442355,-191.0,0.00014027,2]
[333250589,1721981442366,-191.0,0.00014027,2]
[333250590,1721981442377,-191.0,0.00014027,2]
[333250591,1721981442388,-191.0,0.00014027,2]
[333250592,1721981442400,-191.0,0.00014027,2]
[333250593,1721981442411,-191.0,0.00014027,2]
[333250594,1721981442421,-191.0,0.00014027,2]
[333250595,1721981442431,-191.0,0.00014027,2]
[333250596,1721981442445,-3982.2211619,0.0001422,2]
[333250597,1721981442455,-203.53144662,0.00014246,2]
[333250598,1721981442466,-500.0,0.00014246,2]
[333250599,1721981442477,-500.0,0.00014246,2]
[333250600,1721981442488,-500.0,0.00014246,2]
[333250601,1721981442497,-500.0,0.00014246,2]
[333250602,1721981442507,-500.0,0.00014246,2]
[333250603,1721981442520,-500.0,0.00014246,2]
[333250604,1721981442531,-241.86638181,0.00014246,2]
[333250605,1721981442542,-500.0,0.00014246,2]
[333250606,1721981442552,-500.0,0.00014246,2]
[333250607,1721981442563,-176.05499524,0.00014246,2]
[333250608,1721981442573,-540.18,0.00014246,2]
[333250609,1721981442584,-447.86804585,0.00014246,2]
[333250610,1721981442594,-500.0,0.00014246,2]
[333250611,1721981442604,-387.16,0.00014246,2]
[333250612,1721981442614,-500.0,0.00014246,2]
[333250613,1721981442623,-500.0,0.00014246,2]
[333250614,1721981442634,-500.0,0.00014246,2]
[333250615,1721981442645,-500.0,0.00014246,2]
[333250616,1721981442655,-500.0,0.00014246,2]
[333250617,1721981442666,-272.24,0.00014246,2]
[333250618,1721981442677,-500.0,0.00014246,2]
[333250619,1721981442687,-500.0,0.00014246,2]
[333250620,1721981442696,-209.2,0.00014246,2]
[333250621,1721981442706,-500.0,0.00014246,2]
[333250622,1721981442715,-500.0,0.00014246,2]
[333250623,1721981442725,-635.64,0.00014246,2]
[333250624,1721981442734,-220.7,0.00014246,2]
[333250625,1721981442745,-500.0,0.00014246,2]
[333250626,1721981442755,-500.0,0.00014246,2]
[333250627,1721981442765,-471.16,0.00014246,2]
[333250628,1721981442776,-602.4,0.00014246,2]
[333250629,1721981442787,-500.14453354,0.00014246,2]
[333250630,1721981442799,-371.65,0.00014246,2]
[333250631,1721981442808,-443.8,0.00014246,2]
[333250632,1721981442818,-750.0,0.00014247,2]
[333250634,1721981442829,-169.234462,0.00014259,2]
[333250636,1721981442838,-179.768301,0.00014259,2]
[333250639,1721981442847,-157.370029,0.00014259,2]
[333250642,1721981442857,-184.169378,0.00014259,2]
[333250644,1721981442866,-168.163716,0.00014259,2]
[333250647,1721981442876,-203.194656,0.00014259,2]
[333250650,1721981442885,-170.561408,0.00014259,2]
[333250654,1721981442894,-151.0,0.00014259,2]
[333250657,1721981442903,-151.0,0.00014259,2]
[333250660,1721981442912,-600.0,0.00014304,2]
[333250662,1721981442922,-151.0,0.00014305,2]
[333250664,1721981442932,-151.0,0.0001434,2]
[333250666,1721981442941,-151.0,0.0001434,2]
[333250668,1721981442950,-151.0,0.0001434,2]
[333250671,1721981442961,-151.0,0.0001435,2]
[333250673,1721981442970,-3200.0,0.0001435,2]
[333250675,1721981442980,-300.191,0.0001435,2]
[333250677,1721981442989,-620.00000023,0.00014412,2]
[333250680,1721981442999,-1086.82725753,0.0001442,2]
[333250681,1721981443008,-600.0,0.00014453,2]
[333250683,1721981443017,-153.0,0.00014466,2]
[333250686,1721981443029,-154.3392,0.00014466,2]
[333250688,1721981443039,-154.0841196,0.00014466,2]
[333250690,1721981443051,-153.0,0.00014466,2]
[333250692,1721981443061,-295.7519244,0.00014466,2]
[333250695,1721981443073,-153.0,0.00014466,2]
[333250697,1721981443085,-169.234462,0.00014497,2]
[333250699,1721981443096,-179.768301,0.00014497,2]
[333250701,1721981443108,-184.169378,0.00014497,2]
[333250704,1721981443119,-27126.6573089,0.00014499,5]
[333250777,1721982021127,208.91080545,9.999e-05,2]
[333250778,1721982081282,2000.0,0.00025,120]
[333250780,1721982112561,1125.35884099,9.999e-05,2]
[333250781,1721982124537,2596.89778515,9.999e-05,2]
[333250782,1721982151464,14029.05470467,9.999e-05,2]
[333250784,1721982318259,154.8339045,9.999e-05,2]
[333250785,1721982393153,-166.666666,0.00013018,2]
[333250786,1721982393177,-134.13417672,0.00013373,2]
[333250787,1721982454792,780.21536415,9.999e-05,2]
[333250788,1721982495333,522.82141325,9.999e-05,2]
[333250790,1721982585729,163.60966795,9.999e-05,2]
[333250792,1721982630688,494.59277437,9.999e-05,2]
[333250859,1721982638442,-32.53248928,0.00013373,2]
[333250862,1721982638462,-200.0,0.00013425,2]
[333250865,1721982638475,-464.21190119,0.00013655,2]
[333250867,1721982638485,-288.11381566,0.00013699,2]
[333250869,1721982638500,-2711.88618434,0.00013699,2]
[333250871,1721982638511,-166.666666,0.00013728,2]
[333250874,1721982638524,-153.0,0.00013841,2]
[333250876,1721982638536,-500.0,0.000139,7]
[333250877,1721982638546,-300.0,0.00013934,2]
[333250878,1721982638557,-1409.0,0.00013935,2]
[333250879,1721982638568,-150.0,0.00013935,2]
[333250880,1721982638579,-505.0,0.00013935,2]
[333250881,1721982638591,-153.0,0.00014007,2]
[333250882,1721982638602,-153.0,0.00014007,2]
[333250883,1721982638613,-153.0,0.00014007,2]
[333250884,1721982638624,-153.0,0.00014007,2]
[333250885,1721982638634,-153.0,0.00014007,2]
[333250886,1721982638645,-153.0,0.00014007,2]
[333250887,1721982638656,-153.0,0.00014007,2]
[333250888,1721982638666,-153.0,0.00014007,2]
[333250889,1721982638678,-153.0,0.00014007,2]
[333250890,1721982638690,-153.0,0.00014007,2]
[333250891,1721982638702,-153.0,0.00014007,2]
[333250892,1721982638713,-153.0,0.00014007,2]
[333250893,1721982638724,-153.0,0.00014007,2]
[333250894,1721982638736,-153.0,0.00014007,2]
[333250895,1721982638748,-4260.24103974,0.00014007,2]
[333250896,1721982638760,-166.666666,0.00014082,2]
[333250897,1721982638771,-367.53930495,0.00014158,2]
[333250898,1721982638783,-3631.17992742,0.00014194,2]
[333250899,1721982638795,-176.70192,0.00014211,2]
[333250900,1721982638813,-179.768301,0.00014211,2]
[333250901,1721982638824,-170.561408,0.00014211,2]
[333250902,1721982638834,-193.682017,0.00014211,2]
[333250903,1721982638846,-168.163716,0.00014211,2]
[333250904,1721982638857,-157.370029,0.00014211,2]
[333250905,1721982638866,-179.768301,0.00014211,2]
[333250906,1721982638879,-169.234462,0.00014211,2]
[333250907,1721982638889,-187.5,0.00014247,2]
[333250908,1721982638900,-712.5,0.00014247,2]
[333250909,1721982638910,-600.0,0.00014304,2]
[333250910,1721982638922,-165.4040642,0.00014385,2]
[333250911,1721982638932,-3895.64789719,0.0001441,2]
[333250912,1721982638941,-3200.0,0.00014423,2]
[333250913,1721982638953,-300.191,0.00014423,2]
[333250914,1721982638965,-166.666666,0.00014437,2]
[333250915,1721982638976,-600.0,0.00014453,2]
[333250916,1721982638986,-2887.0,0.00014483,2]
[333250917,1721982638997,-177.8,0.00014498,2]
[333250918,1721982639008,-359.56,0.00014498,2]
[333250919,1721982639018,-522.41,0.00014498,2]
[333250920,1721982639028,-373.22337155,0.00014499,2]
[333250921,1721982639039,-5091.522383,0.000145,2]
[333250922,1721982639050,-151.0,0.0001451,2]
[333250923,1721982639061,-153.962868,0.0001451,2]
[333250924,1721982639071,-500.0,0.0001452,2]
[333250925,1721982639083,-500.0,0.0001452,2]
[333250926,1721982639093,-339.54,0.0001452,2]
[333250927,1721982639103,-500.0,0.0001452,2]
[333250928,1721982639113,-500.0,0.0001452,2]
[333250929,1721982639124,-340.71,0.0001452,2]
[333250930,1721982639134,-414.44,0.0001452,2]
[333250931,1721982639144,-164.76,0.0001452,2]
[333250932,1721982639154,-601.99,0.0001452,2]
[333250933,1721982639163,-500.0,0.0001452,2]
[333250934,1721982639172,-500.0,0.0001452,2]
[333250935,1721982639184,-500.0,0.0001452,2]
[333250936,1721982639196,-558.69,0.0001452,2]
[333250937,1721982639205,-500.0,0.0001453,2]
[333250938,1721982639217,-500.0,0.0001453,2]
[333250939,1721982639227,-500.0,0.0001453,2]
[333250940,1721982639236,-185.55679893,0.0001453,2]
[333250941,1721982639245,-500.0,0.0001453,2]
[333250942,1721982639255,-370.60111438,0.0001453,2]
[333250943,1721982639266,-500.0,0.0001453,2]
[333250944,1721982639276,-500.0,0.0001453,2]
[333250945,1721982639286,-500.0,0.0001453,2]
[333250946,1721982639295,-500.0,0.0001453,2]
[333250947,1721982639309,-500.0,0.0001453,2]
[333250948,1721982639319,-500.0,0.0001453,2]
[333250949,1721982639329,-500.0,0.0001453,2]
[333250950,1721982639339,-500.0,0.0001453,2]
[333250951,1721982639349,-500.0,0.0001453,2]
[333250952,1721982639359,-500.0,0.0001453,2]
[333250953,1721982639369,-500.0,0.0001453,2]
[333250954,1721982639379,-500.0,0.0001453,2]
[333250955,1721982639389,-922.71086546,0.00014531,2]
[333250956,1721982639399,-32117.22475124,0.00014531,2]
[333251036,1721982640633,-38169.48490166,0.00014531,2]
[333251160,1721982654379,200.0,0.0001,2]
[333251161,1721982655362,950.0,0.00025,120]
[333251162,1721982710300,196.52168329,9.999e-05,2]
[333251164,1721982724935,459.29281636,9.999e-05,2]
[333251165,1721982728451,200.0,0.0001,2]
[333251166,1721982767720,4146.32733112,0.0001,2]
[333251167,1721982768233,154.79682475,0.0001,2]
[333251168,1721982771325,155.10125498,0.0001,2]
[333251169,1721982771448,154.91201229,0.0001,2]
[333251170,1721982777770,154.82195475,0.0001,2]
[333251171,1721982779369,154.96779039,0.0001,2]
[333251172,1721982780398,1539.18645024,0.0001,2]
[333251173,1721982782606,1670.21081022,0.0001,2]
[333251174,1721982784091,1653.5321881,0.0001,2]
[333251175,1721982797682,200.0,0.0001,2]
[333251176,1721982816884,3098.08745181,0.0001,2]
[333251177,1721982845939,224.1569362,9.999e-05,2]
[333251179,1721982870045,200.0,0.0001,2]
[333251180,1721982940012,200.0,0.0001,2]
[333251181,1721983010326,200.0,0.0001,2]
[333251182,1721983128296,3082.83023723,0.000249,120]
[333251221,1721983833178,-254.14,0.00010959,2]
[333251223,1721983833188,-166.666666,0.00012139,2]
[333251225,1721983833198,-187.500001,0.00012184,2]
[333251227,1721983833207,-300.0,0.00012268,2]
[333251229,1721983833219,-190.71107881,0.00012269,2]
[333251232,1721983833234,-2407.12880654,0.00012269,2]
[333251234,1721983833246,-1452.74252072,0.00012269,2]
[333251236,1721983833259,-20839.41759393,0.00012269,2]
[333251238,1721983833269,-187.500001,0.00012396,2]
[333251240,1721983833279,-166.666666,0.0001247,2]
[333251241,1721983833288,-187.500001,0.00012607,2]
[333251242,1721983833298,-166.666666,0.00012801,2]
[333251243,1721983833307,-187.500001,0.00012819,2]
[333251244,1721983833318,-166.666666,0.00013132,2]
[333251245,1721983833328,-200.0,0.00013425,2]
[333251246,1721983833339,-166.666666,0.00013463,2]
[333251247,1721983833348,-420.0,0.00013494,2]
[333251248,1721983833358,-3646.90579474,0.00013599,2]
[333251249,1721983833367,-3000.0,0.00013699,2]
[333251250,1721983833377,-350.0,0.00013699,2]
[333251251,1721983833386,-166.666666,0.00013794,2]
[333251252,1721983833395,-153.0,0.00013843,2]
[333251253,1721983833405,-153.0,0.00013843,2]
[333251254,1721983833415,-153.0,0.00013843,2]
[333251255,1721983833424,-153.0,0.00013843,2]
[333251256,1721983833433,-153.0,0.00013843,2]
[333251257,1721983833443,-153.0,0.00013843,2]
[333251258,1721983833452,-153.0,0.00013843,2]
[333251259,1721983833461,-153.0,0.00013843,2]
[333251260,1721983833470,-153.0,0.00013843,2]
[333251261,1721983833480,-153.0,0.00013843,2]
[333251262,1721983833490,-153.0,0.00013843,2]
[333251263,1721983833500,-153.0,0.00013843,2]
[333251265,1721983833510,-153.0,0.00013843,2]
[333251267,1721983833520,-153.0,0.00013843,2]
[333251269,1721983833529,-153.0,0.00013843,2]
[333251271,1721983833539,-153.0,0.00013843,2]
[333251273,1721983833550,-153.0,0.00013843,2]
[333251275,1721983833561,-153.0,0.00013843,2]
[333251277,1721983833572,-100225.25562811,0.00014,2]
[333251278,1721983833585,-1518.48172937,0.00014,2]
[333251279,1721983833597,-526.88844373,0.00014,2]
[333251625,1721983838773,-8614.56,0.00014,2]
[333251630,1721983840850,-45844.98933897,0.00014,2]
[333251631,1721983840863,-471.64870024,0.00014,2]
[333251632,1721983840908,-7694.68890235,0.00014,2]
[333251633,1721983840919,-3182.58600186,0.00014,2]
[333251634,1721983840931,-1471.12326077,0.00014,2]
[333251660,1721983843772,-5295.36,0.00014,2]
[333251661,1721983843828,-791.2784889,0.00014,2]
[333251662,1721983843840,-1746.5,0.00014,2]
[333251663,1721983843885,-169171.6913277,0.00014,2]
[333251664,1721983843895,-524.7,0.00014005,2]
[333251665,1721983843905,-500.0,0.00014005,2]
[333251666,1721983843915,-150.0,0.00014019,2]
[333251667,1721983843925,-642.326,0.00014019,2]
[333251668,1721983843935,-1409.0,0.00014019,2]
[333251670,1721983843944,-153.0,0.00014019,2]
[333251672,1721983843954,-153.0,0.00014019,2]
[333251674,1721983843963,-153.0,0.00014019,2]
[333251676,1721983843973,-153.0,0.00014019,2]
[333251677,1721983843983,-153.0,0.00014019,2]
[333251678,1721983843993,-153.0,0.00014019,2]
[333251679,1721983844002,-153.0,0.00014019,2]
[333251680,1721983844012,-153.0,0.00014019,2]
[333251681,1721983844021,-153.0,0.00014019,2]
[333251682,1721983844032,-153.0,0.00014019,2]
[333251683,1721983844042,-153.0,0.00014019,2]
[333251684,1721983844051,-153.0,0.00014019,2]
[333251685,1721983844060,-153.0,0.00014019,2]
[333251686,1721983844070,-153.0,0.00014019,2]
[333251687,1721983844079,-153.0,0.00014019,2]
[333251688,1721983844089,-153.0,0.00014019,2]
[333251689,1721983844099,-153.0,0.00014019,2]
[333251690,1721983844108,-153.0,0.00014019,2]
[333251691,1721983844117,-153.0,0.00014019,2]
[333251692,1721983844129,-153.0,0.00014019,2]
[333251693,1721983844142,-153.0,0.00014019,2]
[333251694,1721983844152,-153.0,0.00014019,2]
[333251695,1721983844162,-153.0,0.00014019,2]
[333251696,1721983844172,-153.0,0.00014019,2]
[333251697,1721983844182,-153.0,0.00014019,2]
[333251698,1721983844192,-153.0,0.00014019,2]
[333251699,1721983844203,-308.1458562,0.00014055,2]
[333251700,1721983844215,-167.47796,0.00014211,2]
[333251701,1721983844229,-181.941623,0.00014211,2]
[333251702,1721983844238,-156.803645,0.00014211,2]
[333251703,1721983844248,-150.305392,0.00014211,2]
[333251704,1721983844258,-166.804172,0.00014211,2]
[333251705,1721983844268,-750.0,0.00014247,2]
[333251706,1721983844278,-293.9641968,0.00014247,2]
[333251707,1721983844287,-367.53930495,0.00014296,2]
[333251708,1721983844298,-600.0,0.00014304,2]
[333251709,1721983844308,-5307.44717969,0.00014336,2]
[333251710,1721983844318,-620.6837193,0.00014376,2]
[333251711,1721983844327,-164.4384806,0.00014385,2]
[333251712,1721983844337,-181.941623,0.00014389,2]
[333251713,1721983844346,-5336.13903299,0.00014441,2]
[333251714,1721983844360,-27550.07920206,0.00014441,2]
[333251715,1721983844369,-1222.47124522,0.00014441,2]
[333251716,1721983844379,-167.47796,0.00014448,2]
[333251717,1721983844389,-600.0,0.00014453,2]
[333251718,1721983844399,-2000.0,0.0001449,2]
[333251719,1721983844408,-500.0,0.00014498,2]
[333251720,1721983844418,-150.112233,0.000145,2]
[333251721,1721983844427,-150.112233,0.000145,2]
[333251722,1721983844436,-168.0,0.0001451,2]
[333251723,1721983844446,-479.88975925,0.00014519,2]
[333251724,1721983844455,-500.0,0.00014519,2]
[333251725,1721983844464,-500.0,0.00014519,2]
[333251726,1721983844474,-500.0,0.00014519,2]
[333251727,1721983844483,-500.0,0.00014519,2]
[333251728,1721983844494,-500.0,0.00014519,2]
[333251729,1721983844503,-500.0,0.00014519,2]
[333251730,1721983844513,-500.0,0.00014519,2]
[333251731,1721983844522,-500.0,0.00014519,2]
[333251732,1721983844532,-359.42078007,0.00014519,2]
[333251733,1721983844541,-500.0,0.00014519,2]
[333251734,1721983844551,-500.0,0.00014519,2]
[333251735,1721983844560,-500.0,0.00014519,2]
[333251736,1721983844572,-4501.73813197,0.0001452,5]
[333251750,1721983847705,-3000.0,0.00013699,2]
[333251752,1721983847716,-153.0,0.00014019,2]
[333251754,1721983847725,-6950.97921558,0.0001452,5]
[333251756,1721983847737,-3200.0,0.0001452,2]
[333251758,1721983847747,-106517.645909,0.0001452,2]
[333251760,1721983847757,-213035.291817,0.00014531,2]
[333251761,1721983847768,-94388.69386193,0.00014531,5]
[333251763,1721983847779,-151.0,0.00014531,2]
[333251765,1721983847789,-151.0,0.00014531,2]
[333251767,1721983847800,-151.0,0.00014531,2]
[333251769,1721983847811,-151.0,0.00014531,2]
[333251771,1721983847821,-151.0,0.00014531,2]
[333251772,1721983847831,-151.0,0.00014531,2]
[333251773,1721983847842,-151.0,0.00014531,2]
[333251774,1721983847854,-151.0,0.00014531,2]
[333251775,1721983847866,-151.0,0.00014531,2]
[333251776,1721983847877,-151.0,0.00014531,2]
[333251777,1721983847888,-77012.98290861,0.00014531,2]
[333251783,1721984358736,200.0,0.0001,2]
[333251784,1721984442215,1628.33517932,0.0001,2]
[333251785,1721984448706,2110.33261488,0.0001,2]
[333251786,1721984452205,3024.69035047,0.0001,2]
[333251787,1721984602277,155.70429949,9.999e-05,2]
[333251790,1721984697561,500.0,0.00025,120]
[333251837,1721985038259,-166.666666,0.00012868,2]
[333251838,1721985038270,-300.0,0.00013051,2]
[333251839,1721985038281,-330.50611158,0.00013052,2]
[333251872,1721985040033,-24569.49388842,0.00013052,2]
[333251875,1721985040046,-166.666666,0.00013219,2]
[333251877,1721985040059,-200.0,0.00013425,2]
[333251879,1721985040072,-166.666666,0.0001357,2]
[333251882,1721985040084,-150.0,0.00013649,2]
[333251884,1721985040096,-505.0,0.00013649,2]
[333251886,1721985040109,-1409.0,0.00013649,2]
[333251888,1721985040121,-3000.0,0.00013699,2]
[333251891,1721985040133,-500.0,0.00013872,2]
[333251893,1721985040146,-922.53,0.00013872,2]
[333251895,1721985040160,-2961.84,0.00013872,2]
[333251898,1721985040173,-732.5,0.00013872,2]
[333251900,1721985040184,-500.0,0.00013872,2]
[333251902,1721985040196,-5914.39,0.00013872,2]
[333251904,1721985040208,-3521.42,0.00013872,2]
[333251907,1721985040220,-1079.19,0.00013872,2]
[333251909,1721985040231,-40.76654803,0.00013872,2]
[333251935,1721985042984,-855.42345197,0.00013872,2]
[333251936,1721985042994,-1178.97,0.00013872,2]
[333251937,1721985043009,-840.65,0.00013872,2]
[333251938,1721985043020,-981.82,0.00013872,2]
[333251939,1721985043031,-500.86,0.00013872,2]
[333251940,1721985043043,-853.21,0.00013872,2]
[333251941,1721985043054,-500.0,0.00013872,2]
[333251942,1721985043067,-500.0,0.00013872,2]
[333251943,1721985043078,-2614.36,0.00013872,2]
[333251945,1721985043090,-214.88674765,0.00013872,2]
[333251959,1721985067761,200.0,0.0001,2]
[333251961,1721985194802,206.70376554,9.999e-05,2]
[333251962,1721985216043,113936.0,0.00025,120]
[333251963,1721985238001,521.98168148,9.999e-05,2]
[333251964,1721985454692,288.73024545,9.999e-05,2]
[333251965,1721985476331,208.50808061,9.999e-05,2]
[333251967,1721985496487,232.3352443,0.0001,2]
[333251968,1721985504385,585.36853987,9.999e-05,2]
[333251969,1721985562382,307.83582326,0.0001,2]
[333251970,1721985571817,188.05852618,9.999e-05,2]
[333251971,1721985649429,154.9057976,9.999e-05,2]
[333251973,1721985909079,664.52290182,9.999e-05,2]
[333251974,1721985943491,269.5376517,9.999e-05,7]
[333251975,1721986008151,-257.15,0.00010959,2]
[333251976,1721986008174,-43.65244119,0.00011999,2]
[333252027,1721986238167,-300.0,0.00011999,2]
[333252028,1721986238180,-15002.81874507,0.00012,2]
[333252029,1721986238189,-166.666666,0.00012665,2]
[333252030,1721986238198,-166.666666,0.0001301,2]
[333252031,1721986238208,-177.0,0.00013199,2]
[333252032,1721986238219,-166.666666,0.00013355,2]
[333252033,1721986238228,-306.0,0.000134,2]
[333252034,1721986238239,-307.3392,0.000134,2]
[333252035,1721986238250,-295.7519244,0.000134,2]
[333252036,1721986238259,-200.0,0.00013425,2]
[333252037,1721986238269,-4493.44910567,0.00013583,2]
[333252038,1721986238278,-367.53930495,0.00013615,2]
[333252039,1721986238288,-3000.0,0.00013699,2]
[333252040,1721986238297,-166.666666,0.00013701,2]
[333252041,1721986238307,-1100.22412068,0.0001377,2]
[333252042,1721986238316,-500.0,0.00013849,2]
[333252043,1721986238325,-500.0,0.00013849,2]
[333252044,1721986238334,-519.86,0.00013849,2]
[333252045,1721986238344,-11274.92193523,0.0001385,2]
[333252046,1721986238383,-663.82537958,0.0001385,2]
[333252062,1721986240107,-81080.55940499,0.0001385,2]
[333252064,1721986240118,-500.0,0.0001385,2]
[333252066,1721986240127,-994.79,0.0001385,2]
[333252068,1721986240136,-3024.34,0.0001385,2]
[333252070,1721986240146,-777.62,0.0001385,2]
[333252072,1721986240155,-500.0,0.0001385,2]
[333252074,1721986240164,-5976.89,0.0001385,2]
[333252076,1721986240174,-3583.92,0.0001385,2]
[333252078,1721986240187,-1141.69,0.0001385,2]
[333252081,1721986240197,-929.05,0.0001385,2]
[333252083,1721986240206,-1192.34,0.0001385,2]
[333252085,1721986240215,-866.2,0.0001385,2]
[333252087,1721986240226,-1021.65,0.0001385,2]
[333252089,1721986240235,-500.0,0.0001385,2]
[333252091,1721986240247,-880.03,0.0001385,2]
[333252093,1721986240258,-500.0,0.0001385,2]
[333252095,1721986240268,-500.0,0.0001385,2]
[333252097,1721986240278,-567.98,0.0001385,2]